bitfinex/quotes_ETHUSD_20241101
["timestamp","ask_amount","ask_price","bid_price","bid_amount"]
[1730491317914,3.97305,2517.0,2516.5,3.97367]
[1730491318103,3.97305,2517.0,2516.4,2.96028292]
[1730491318104,4.78051,2517.1,2516.6,4.3889]
[1730491318286,3.97291,2517.1,2516.6,8.36242]
[1730491318483,7.94583,2517.1,2516.6,5.52109029]
[1730491318792,7.94584,2517.1,2516.6,5.52109029]
[1730491318998,3.97291,2517.1,2516.6,5.52109029]
[1730491319400,3.97299,2517.0,2516.6,1.54757029]
[1730491319801,3.9733,2516.8,2516.3,4.38927]
[1730491320019,3.97299,2517.0,2516.4,3.9738]
[1730491320216,4.75955,2516.9,2516.3,4.38932]
[1730491320416,3.97346,2516.7,2516.3,0.4153]
[1730491320615,7.94703,2516.7,2516.3,0.4153]
[1730491320819,3.97346,2516.7,2516.3,0.4153]
[1730491321134,3.97346,2516.7,2516.3,0.8981379]
[1730491321494,4.75955,2516.9,2516.3,0.8981379]
[1730491321691,3.97336,2516.8,2516.3,4.8722079]
[1730491322303,3.97344,2516.8,2516.3,0.8981379]
[1730491322883,3.97344,2516.8,2516.3,4.8721779]
[1730491323039,3.97344,2516.8,2516.4,0.88462979]
[1730491323200,3.973,2517.0,2516.4,4.85842979]
[1730491323533,3.97322,2516.9,2516.4,4.85842979]
[1730491323920,3.97322,2516.9,2516.4,8.83228979]
[1730491324125,3.97322,2516.9,2516.5,0.97304277]
[1730491325329,3.97348,2516.7,2516.3,0.8981379]
[1730491325534,3.97362,2516.6,2516.1,3.97433]
[1730491325731,3.97362,2516.6,2516.1,4.51396688]
[1730491325932,0.7868,2516.7,2516.1,0.4153]
[1730491325933,3.97406,2516.4,2516.1,0.4153]
[1730491326244,3.97406,2516.4,2515.9,4.51433538]
[1730491326544,3.97406,2516.4,2515.9,4.38999]
[1730491326917,7.9481,2516.4,2515.9,4.38999]
[1730491327117,0.476009,2516.6,2515.8,0.18397834]
[1730491327118,3.97458,2516.0,2515.8,0.18397834]
[1730491327318,3.97458,2516.0,2515.8,0.05962999]
[1730491327728,3.97458,2516.0,2515.7,0.4153]
[1730491327942,3.97481,2515.9,2515.5,0.12434835]
[1730491328154,3.97458,2516.0,2515.5,3.97534]
[1730491328318,7.94923,2516.0,2515.5,3.97534]
[1730491329417,3.97473,2515.9,2515.4,4.39078]
[1730491329614,3.97473,2515.9,2515.4,5.24732351]
[1730491329851,3.97458,2516.0,2515.4,5.24732351]
[1730491330018,3.97474,2515.9,2515.4,9.22275351]
[1730491330618,3.97474,2515.9,2515.4,5.24727351]
[1730491331453,0.7868,2516.2,2515.5,0.52472735]
[1730491331628,3.97447,2516.1,2515.6,3.97512]
[1730491332354,3.97393,2516.4,2515.7,6.93523292]
[1730491332655,0.7738,2516.5,2515.7,6.93523292]
[1730491332656,3.97431,2516.2,2515.9,0.4153]
[1730491332962,3.97464,2516.0,2515.6,0.4153]
[1730491333169,4.74844,2516.0,2515.6,0.4153]
[1730491333452,4.74844,2516.0,2515.2,3.0]
[1730491333453,3.97575,2515.3,2514.8,4.39172]
[1730491333615,3.97607,2515.1,2514.6,4.516448]
[1730491333821,3.97594,2515.2,2514.7,3.9766]
[1730491334129,0.8109,2515.6,2515.1,3.97596]
[1730491334329,4.78611,2515.6,2515.1,3.97596]
[1730491334585,3.975,2515.8,2515.3,3.97556]
[1730491335052,0.8109,2516.0,2515.2,3.97573]
[1730491335240,0.8109,2516.0,2515.3,0.69360129]
[1730491335241,3.97472,2515.9,2515.3,0.69360129]
[1730491335765,3.97494,2515.8,2515.3,4.66916129]
[1730491336158,3.0,2516.1,2515.4,4.39071]
[1730491336361,3.97457,2516.0,2515.5,3.97523]
[1730491337227,0.7683,2516.2,2515.4,3.37558292]
[1730491337567,3.97463,2516.0,2515.5,3.97528]
[1730491339232,3.9744,2516.1,2515.5,3.97528]
[1730491339570,3.97496,2515.8,2515.1,3.97588]
[1730491339865,3.97513,2515.7,2515.2,3.97573]
[1730491341267,3.97513,2515.7,2515.1,7.37528092]
[1730491341482,3.97513,2515.7,2515.3,0.4153]
[1730491341767,4.79642,2515.9,2515.4,3.97545]
[1730491341944,3.97472,2515.9,2515.5,0.439075]
[1730491343271,3.97472,2515.9,2515.5,4.414415]
[1730491343676,3.97463,2516.0,2515.5,4.414415]
[1730491344130,3.97474,2515.9,2515.5,4.414415]
[1730491344336,3.97474,2515.9,2515.5,0.439075]
[1730491344768,3.97474,2515.9,2515.4,4.05500205]
[1730491344938,3.97503,2515.7,2515.3,4.39096]
[1730491345389,4.7773,2515.8,2515.3,4.39096]
[1730491345560,4.7773,2515.8,2515.3,4.39086]
[1730491345767,3.9749,2515.8,2515.4,4.42253642]
[1730491346069,3.9749,2515.8,2515.4,0.44703642]
[1730491346367,3.9749,2515.8,2515.3,0.4153]
[1730491346532,3.97474,2515.9,2515.4,3.97537]
[1730491348554,3.97474,2515.9,2515.4,7.95075]
[1730491349042,3.97474,2515.9,2515.4,3.97537]
[1730491349256,3.97431,2516.2,2515.8,3.97486]
[1730491349458,0.8197,2516.3,2515.8,3.97486]
[1730491349459,3.97415,2516.3,2516.0,0.4153]
[1730491349779,3.97463,2516.0,2515.8,0.4153]
[1730491349978,3.97484,2515.9,2515.6,0.4153]
[1730491350151,3.97457,2516.0,2515.6,1.15038529]
[1730491350354,3.9744,2516.1,2515.6,1.15038529]
[1730491350554,3.9744,2516.1,2515.6,5.12546529]
[1730491350869,3.97417,2516.3,2515.6,5.12545529]
[1730491351057,3.97426,2516.2,2515.8,3.97487]
[1730491351256,3.97426,2516.2,2515.8,4.88490253]
[1730491351689,3.97411,2516.3,2515.9,3.9747]
[1730491351991,3.97401,2516.4,2516.0,0.4153]
[1730491352859,3.97401,2516.4,2516.0,4.38983]
[1730491353365,7.94805,2516.4,2516.0,0.4153]
[1730491353693,0.7736,2516.6,2516.2,3.9742]
[1730491353694,4.74724,2516.6,2516.2,3.9742]
[1730491353895,0.7736,2516.6,2516.1,3.97426]
[1730491354102,3.97333,2516.8,2516.4,3.97382]
[1730491354103,4.78823,2516.8,2516.4,3.97382]
[1730491354471,8.76165,2516.8,2516.4,3.97382]
[1730491354793,3.97346,2516.7,2516.2,3.97409]
[1730491355097,4.78823,2516.8,2516.4,3.97391]
[1730491355098,8.76165,2516.8,2516.4,3.97391]
[1730491355262,9.937815,2516.8,2516.3,3.97407]
[1730491355567,5.964395,2516.8,2516.1,8.387526]
[1730491355759,3.97369,2516.6,2516.1,3.97428]
[1730491356191,3.97384,2516.5,2516.1,3.97428]
[1730491356379,1.991065,2516.8,2516.1,3.97428]
[1730491356380,3.97362,2516.6,2516.1,3.97428]
[1730491356579,3.97362,2516.6,2516.2,3.97424]
[1730491356800,4.9674315,2516.6,2516.2,3.97424]
[1730491357097,4.9674315,2516.6,2516.0,4.38977]
[1730491357290,8.9411415,2516.6,2516.1,3.97432]
[1730491357615,4.9674315,2516.6,2516.1,3.97432]
[1730491357917,4.9674315,2516.6,2516.0,4.38977]
[1730491357918,3.9741,2516.3,2516.0,0.4153]
[1730491363742,0.7867,2516.2,2515.8,0.12435096]
[1730491364027,3.97457,2516.0,2515.6,4.3904]
[1730491364231,3.97457,2516.0,2515.6,4.51475096]
[1730491364422,3.97474,2515.9,2515.6,0.53965096]
[1730491364623,3.97474,2515.9,2515.5,0.61869208]
[1730491364802,3.97474,2515.9,2515.5,0.12435096]
[1730491365004,3.97474,2515.9,2515.4,4.81044641]
[1730491365240,3.97474,2515.9,2515.5,0.12435096]
[1730491365397,3.97488,2515.8,2515.5,0.12435096]
[1730491365712,3.97488,2515.8,2515.5,0.41972641]
[1730491366639,3.97488,2515.8,2515.5,0.12435096]
[1730491367044,4.76097,2516.2,2515.5,0.41972641]
[1730491367207,7.94986,2515.8,2515.4,4.81068221]
[1730491367403,3.9749,2515.8,2515.4,4.3908]
[1730491367735,3.9749,2515.8,2515.4,4.51515096]
[1730491367901,3.9749,2515.8,2515.5,0.12435096]
[1730491368098,3.9749,2515.8,2515.4,4.81070598]
[1730491368333,3.9749,2515.8,2515.4,4.68632124]
[1730491369923,3.9749,2515.8,2515.5,0.12437584]
[1730491370243,3.9749,2515.8,2515.5,0.12437582]
[1730491370403,3.9749,2515.8,2515.6,0.12437582]
[1730491370611,3.9749,2515.8,2515.5,0.12437582]
[1730491370931,3.9749,2515.8,2515.6,0.12437586]
[1730491371138,3.9749,2515.8,2515.5,0.12437525]
[1730491371337,3.9749,2515.8,2515.6,0.12437526]
[1730491371504,3.9749,2515.8,2515.4,4.3908]
[1730491371703,3.9749,2515.8,2515.4,5.227447]
[1730491373542,3.9749,2515.8,2515.5,0.29593911]
[1730491373843,3.9749,2515.8,2515.4,5.227447]
[1730491373844,3.9749,2515.8,2515.4,5.227357]
[1730491374048,3.97469,2516.0,2515.4,8.18769992]
[1730491374256,3.97447,2516.1,2515.6,3.97507]
[1730491374416,3.97447,2516.1,2515.7,4.79045]
[1730491374818,3.97447,2516.1,2515.8,0.12437713]
[1730491375118,3.97447,2516.1,2515.9,0.12437713]
[1730491375326,4.76107,2516.2,2515.8,3.97481]
[1730491375548,3.9741,2516.3,2515.9,5.1900085]
[1730491375851,3.9741,2516.3,2516.0,0.12436621]
[1730491376384,3.9741,2516.3,2515.9,5.06564229]
[1730491376524,4.74933,2516.4,2515.9,1.09101229]
[1730491376862,3.97411,2516.3,2515.9,5.06571229]
[1730491377046,3.97369,2516.6,2516.1,3.97432]
[1730491377235,3.97364,2516.6,2516.2,3.97413]
[1730491377552,3.97364,2516.6,2516.2,0.12435598]
[1730491378156,3.97364,2516.6,2516.2,4.09852598]
[1730491378353,3.97364,2516.6,2516.2,4.51382598]
[1730491378718,3.97352,2516.7,2516.3,3.97401]
[1730491378924,3.9733,2516.8,2516.4,4.09820598]
[1730491379258,3.9733,2516.8,2516.5,0.12435598]
[1730491379421,3.97352,2516.7,2516.5,0.12435598]
[1730491379625,3.97331,2516.8,2516.4,0.12435598]
[1730491379960,3.97331,2516.8,2516.4,0.12433418]
[1730491380131,3.97347,2516.7,2516.3,4.09830418]
[1730491380317,3.97377,2516.5,2516.4,0.12433418]
[1730491380539,3.97393,2516.4,2516.3,0.12433418]
[1730491380721,1.553578,2516.7,2516.0,4.38981]
[1730491380722,5.527128,2516.7,2516.1,0.12433418]
[1730491380922,3.97355,2516.7,2516.3,3.97407]
[1730491381130,3.97355,2516.7,2516.4,0.12433418]
[1730491382044,3.97331,2516.8,2516.4,0.12433418]
[1730491382224,3.97352,2516.7,2516.3,6.93422292]
[1730491382453,3.97352,2516.7,2516.2,3.97421]
[1730491382848,3.97331,2516.8,2516.2,3.97421]
[1730491383049,3.97361,2516.6,2516.2,3.97421]
[1730491383248,3.97348,2516.7,2516.3,0.12433855]
[1730491383455,3.97348,2516.7,2516.4,0.12433855]
[1730491383652,3.97348,2516.7,2516.3,0.12433855]
[1730491384468,3.97331,2516.8,2516.4,0.4153]
[1730491384962,3.97353,2516.7,2516.4,0.4153]
[1730491385764,3.97309,2517.0,2516.5,3.97377]
[1730491386068,3.97309,2517.0,2516.5,4.09798844]
[1730491386277,4.7852,2517.1,2516.6,3.97361]
[1730491386563,4.7852,2517.1,2516.6,0.12432844]
[1730491386793,3.97322,2516.9,2516.5,0.12432844]
[1730491386995,3.97322,2516.9,2516.5,0.92058652]
[1730491387358,3.97322,2516.9,2516.5,4.89428652]
[1730491387595,3.97298,2517.0,2516.5,4.89428652]
[1730491387798,3.97299,2517.0,2516.6,0.12432422]
[1730491388008,3.97299,2517.0,2516.5,4.89428308]
[1730491388756,3.97299,2517.0,2516.5,0.92058308]
[1730491389172,3.97314,2516.9,2516.5,0.92058308]
[1730491389899,3.97299,2517.0,2516.5,0.124325]
[1730491390058,3.97352,2516.7,2516.2,4.38947]
[1730491390259,3.97352,2516.7,2516.2,4.51380638]
[1730491390454,3.97332,2516.8,2516.3,3.97396]
[1730491390703,3.97332,2516.8,2516.3,4.09829638]
[1730491390987,3.97317,2516.9,2516.4,3.97383]
[1730491391156,3.97317,2516.9,2516.4,4.17763535]
[1730491391352,3.97329,2516.8,2516.4,0.12433638]
[1730491391591,3.97345,2516.7,2516.2,4.38942]
[1730491391901,3.97345,2516.7,2516.3,0.12433489]
[1730491392065,3.97345,2516.7,2516.2,5.8889817]
[1730491392272,3.97345,2516.7,2516.3,4.09840489]
[1730491393092,3.97322,2516.9,2516.4,3.97385]
[1730491393295,3.97307,2517.0,2516.5,3.97366]
[1730491393594,0.8123,2517.1,2516.5,3.97366]
[1730491393595,4.78512,2517.1,2516.5,0.1243272]
[1730491393891,3.97278,2517.2,2516.8,3.97322]
[1730491395183,7.94554,2517.2,2516.8,3.97322]
[1730491395388,3.97289,2517.1,2516.6,4.38889]
[1730491395571,3.97308,2517.0,2516.6,4.38884]
[1730491396603,3.97308,2517.0,2516.6,0.4153]
[1730491396903,3.97308,2517.0,2516.6,4.3889]
[1730491399270,3.97308,2517.0,2516.6,8.36244]
[1730491399574,3.97308,2517.0,2516.6,4.38884]
[1730491400098,3.97308,2517.0,2516.6,8.36238]
[1730491400305,3.9728,2517.2,2516.6,5.23748012]
[1730491400478,3.97282,2517.1,2516.7,3.97334]
[1730491401508,3.973,2517.0,2516.6,5.23755012]
[1730491401707,3.97284,2517.1,2516.7,3.97345]
[1730491401908,3.97284,2517.1,2516.6,5.23743012]
[1730491402212,3.97284,2517.1,2516.7,3.97342]
[1730491402621,3.97284,2517.1,2516.6,5.23755012]
[1730491402773,7.94576,2517.1,2516.6,4.38883]
[1730491403114,3.97284,2517.1,2516.6,4.38883]
[1730491403285,3.97284,2517.1,2516.6,8.36237]
[1730491404014,0.7556,2517.0,2516.6,0.4153]
[1730491404179,4.72868,2517.0,2516.6,4.3888]
[1730491404382,4.72868,2517.0,2516.6,4.5131164]
[1730491404913,3.97332,2516.8,2516.6,0.1243164]
[1730491405085,3.97334,2516.8,2516.4,3.97393]
[1730491406623,1.625738,2517.0,2516.2,0.4153]
[1730491406781,3.97368,2516.6,2516.2,0.4153]
[1730491406980,3.97368,2516.6,2516.2,4.38953]
[1730491407318,3.97338,2516.8,2516.2,0.49478291]
[1730491407484,3.97347,2516.7,2516.3,3.97408]
[1730491407824,3.97346,2516.7,2516.2,4.51377084]
[1730491407979,3.97346,2516.7,2516.2,4.51377139]
[1730491408184,3.97346,2516.7,2516.2,4.38943]
[1730491408608,3.97346,2516.7,2516.2,4.51377142]
[1730491408810,3.97346,2516.7,2516.2,4.38943]
[1730491408981,3.97346,2516.7,2516.2,4.51376863]
[1730491410080,3.97338,2516.8,2516.2,4.51376863]
[1730491410081,3.9733,2516.8,2516.4,3.97386]
[1730491410399,3.9733,2516.8,2516.4,3.9739]
[1730491410691,3.97299,2517.0,2516.6,4.3889]
[1730491410896,3.97289,2517.1,2516.6,8.36242]
[1730491411096,4.76489,2517.2,2516.7,4.41227]
[1730491411835,3.97291,2517.1,2516.7,4.41227]
[1730491412427,3.97291,2517.1,2516.7,0.43889]
[1730491412637,3.973,2517.0,2516.7,0.43889]
[1730491412930,0.7921,2517.2,2516.7,0.43889]
[1730491413137,3.97284,2517.1,2516.7,4.41233]
[1730491413631,4.76487,2517.2,2516.8,0.880114]
[1730491413795,3.97277,2517.2,2516.8,0.880114]
[1730491413999,3.97282,2517.1,2516.8,0.880114]
[1730491414224,3.97282,2517.1,2516.7,4.09768621]
[1730491414428,3.97282,2517.1,2516.7,4.09768525]
[1730491415134,3.97273,2517.2,2516.8,3.97329]
[1730491415500,3.97206,2517.6,2516.8,3.97329]
[1730491415501,0.8152,2517.7,2516.9,0.4153]
[1730491415700,3.97138,2518.1,2517.4,4.38753]
[1730491415701,3.97163,2517.9,2517.4,4.38753]
[1730491415934,3.97117,2518.2,2517.7,0.4153]
[1730491416139,3.97117,2518.2,2517.7,4.3871]
[1730491416444,3.97093,2518.3,2517.7,5.74313447]
[1730491416621,0.8152,2518.4,2517.8,4.09588065]
[1730491416829,0.8152,2518.4,2517.9,3.97144]
[1730491416830,3.97081,2518.4,2517.9,3.97144]
[1730491417147,3.97081,2518.4,2517.9,4.09569522]
[1730491417327,3.97081,2518.4,2517.7,1.76641181]
[1730491417328,3.97111,2518.2,2517.7,1.56760372]
[1730491417642,3.97086,2518.4,2517.8,3.97162]
[1730491417935,8.8331978,2518.6,2518.0,3.97138]
[1730491418124,8.8331678,2518.6,2518.0,3.97131]
[1730491418328,3.97074,2518.5,2518.0,3.97131]
[1730491418541,3.97074,2518.5,2517.8,3.97162]
[1730491418542,3.97074,2518.5,2517.9,3.97155]
[1730491418699,3.97086,2518.4,2517.9,3.97155]
[1730491419038,3.97086,2518.4,2517.9,5.10342529]
[1730491419643,3.97086,2518.4,2518.0,3.97138]
[1730491419843,3.97062,2518.5,2518.0,3.97138]
[1730491420516,4.8626178,2518.6,2518.2,4.38624]
[1730491420517,0.1229478,2518.6,2518.2,4.38624]
[1730491420727,0.1229478,2518.6,2518.2,0.4153]
[1730491421239,0.1229478,2518.6,2518.2,4.38637]
[1730491421607,0.1229478,2518.6,2518.2,0.4153]
[1730491422328,0.1229478,2518.6,2518.3,3.97091]
[1730491422525,0.1229478,2518.6,2518.2,1.14997129]
[1730491422526,4.0934178,2518.6,2518.2,1.14997129]
[1730491423133,0.1229478,2518.6,2518.2,5.12105129]
[1730491423444,0.1229478,2518.6,2518.2,1.14997129]
[1730491423643,4.0934478,2518.6,2518.2,1.14997129]
[1730491424107,4.0934478,2518.6,2518.2,5.12104129]
[1730491424308,0.1229478,2518.6,2518.2,5.12104129]
[1730491425521,4.0934078,2518.6,2518.2,5.12104129]
[1730491427144,4.0934078,2518.6,2518.2,1.14997129]
[1730491427543,4.0934078,2518.6,2518.0,4.3866]
[1730491427544,4.78701,2518.5,2518.0,4.3866]
[1730491427840,3.9708,2518.4,2518.0,4.3866]
[1730491428429,3.97095,2518.3,2518.0,0.4153]
[1730491428632,3.9708,2518.4,2518.0,0.4153]
[1730491428633,7.94169,2518.4,2518.0,0.4153]
[1730491429035,7.94169,2518.4,2517.9,3.97155]
[1730491429221,3.9708,2518.4,2517.9,7.94298]
[1730491429842,7.94171,2518.4,2517.9,3.97143]
[1730491430252,3.9708,2518.4,2517.8,0.4153]
[1730491430407,3.971,2518.3,2517.8,4.38688]
[1730491431758,3.97086,2518.4,2517.8,4.38701]
[1730491431937,4.46187478,2518.4,2517.8,4.38701]
[1730491432127,3.9711,2518.2,2517.8,4.38701]
[1730491432528,4.46187478,2518.4,2517.9,3.97154]
[1730491432732,7.94172,2518.4,2517.9,3.97154]
[1730491432914,3.97086,2518.4,2517.9,3.97154]
[1730491433114,3.97086,2518.4,2517.9,7.94301]
[1730491433318,3.97094,2518.3,2517.9,3.97147]
[1730491433745,3.97094,2518.3,2517.9,7.94295]
[1730491433946,3.97094,2518.3,2517.9,3.97147]
[1730491435360,3.97094,2518.3,2517.8,4.38699]
[1730491435654,3.97094,2518.3,2517.8,4.38688]
[1730491435655,7.94201,2518.3,2517.8,4.38688]
[1730491435858,7.94201,2518.3,2517.6,3.97191]
[1730491435859,3.97136,2518.1,2517.6,4.38721]
[1730491436034,4.77639,2518.2,2517.7,3.97175]
[1730491436257,3.97085,2518.4,2517.7,3.97175]
[1730491436258,4.77615,2518.4,2517.9,3.97156]
[1730491436556,4.77615,2518.4,2518.0,0.4153]
[1730491436765,4.77615,2518.4,2518.0,4.3867]
[1730491437336,4.77615,2518.4,2518.0,0.4153]
[1730491437337,3.97102,2518.3,2518.0,0.4153]
[1730491438552,7.94205,2518.3,2518.0,0.4153]
[1730491438754,3.97102,2518.3,2517.8,4.38699]
[1730491440172,3.97102,2518.3,2517.9,7.94304]
[1730491440338,3.97102,2518.3,2517.9,3.97149]
[1730491441074,3.97102,2518.3,2517.9,3.97147]
[1730491441633,3.97102,2518.3,2517.9,7.94292]
[1730491441841,3.97101,2518.3,2517.9,3.97145]
[1730491442471,3.9711,2518.2,2517.8,4.38697]
[1730491442976,3.97104,2518.3,2517.8,4.387]
[1730491443175,3.9711,2518.2,2517.8,4.387]
[1730491444252,3.97104,2518.3,2517.8,4.387]
[1730491444456,3.9711,2518.2,2517.8,4.387]
[1730491445338,3.9711,2518.2,2517.8,8.35864]
[1730491445651,3.9711,2518.2,2517.8,4.38694]
[1730491446767,4.77608,2518.4,2517.8,4.38694]
[1730491446979,3.97093,2518.3,2517.9,3.97148]
[1730491447375,3.9711,2518.2,2517.8,4.38694]
[1730491447847,3.9711,2518.2,2517.8,0.4153]
[1730491448175,3.97133,2518.1,2517.6,4.38723]
[1730491448542,3.97133,2518.1,2517.7,3.97187]
[1730491449742,3.97169,2517.9,2517.4,3.97235]
[1730491449943,0.7813,2518.0,2517.4,3.97235]
[1730491449944,3.97184,2517.8,2517.4,3.97235]
[1730491450246,3.97156,2517.9,2517.3,4.38773]
[1730491450615,3.97186,2517.8,2517.3,4.38773]
[1730491450786,4.446846,2517.9,2517.2,4.03211156]
[1730491450787,4.75334,2517.6,2517.2,4.03211156]
[1730491450943,3.97227,2517.5,2517.2,0.05959156]
[1730491451449,7.94458,2517.5,2517.2,0.05959156]
[1730491451760,3.97227,2517.5,2517.2,0.05959156]
[1730491452082,0.872558,2517.5,2516.9,4.38843]
[1730491452245,3.97248,2517.4,2516.9,4.38843]
[1730491452574,0.7813,2517.6,2516.8,1.45593447]
[1730491452575,3.97258,2517.3,2516.8,1.45593447]
[1730491452778,3.97258,2517.3,2516.8,3.97328]
[1730491452779,3.97274,2517.2,2516.8,3.97328]
[1730491453092,3.97258,2517.3,2516.8,3.97328]
[1730491453093,3.97253,2517.3,2516.8,3.97329]
[1730491453384,7.94513,2517.3,2516.8,3.97329]
[1730491453543,3.97277,2517.2,2516.7,4.38867]
[1730491453885,4.75407,2517.2,2516.8,3.97326]
[1730491454398,4.75407,2517.2,2516.7,5.224903]
[1730491454600,4.75397,2517.2,2516.7,9.198253]
[1730491454813,4.75397,2517.2,2516.8,3.97321]
[1730491456588,4.75397,2517.2,2516.7,9.198253]
[1730491456786,4.75397,2517.2,2516.7,5.224883]
[1730491457775,4.75397,2517.2,2516.8,3.97328]
[1730491457963,4.75397,2517.2,2516.7,5.224883]
[1730491458169,4.75397,2517.2,2516.7,1.251533]
[1730491458398,0.7813,2517.2,2516.8,3.97321]
[1730491458605,4.75375,2517.4,2516.8,0.7262766]
[1730491458764,8.72621,2517.4,2516.9,3.97306]
[1730491458964,4.75375,2517.4,2516.9,3.97306]
[1730491459169,8.72625,2517.4,2516.9,3.97306]
[1730491459599,8.72625,2517.4,2516.8,4.62005349]
[1730491459600,4.75375,2517.4,2516.8,4.62005349]
[1730491459798,4.75375,2517.4,2516.8,0.12430619]
[1730491459799,3.97277,2517.2,2516.8,0.12430619]
[1730491460016,3.97277,2517.2,2516.7,4.38861]
[1730491460303,0.7813,2517.4,2516.7,4.38861]
[1730491460304,3.97289,2517.1,2516.7,4.38861]
[1730491460475,3.97289,2517.1,2516.6,0.41898004]
[1730491460476,0.829,2517.0,2516.6,0.12430447]
[1730491460677,0.829,2517.0,2516.6,3.97359]
[1730491460878,0.829,2517.0,2516.6,4.93415247]
[1730491462094,4.80205,2517.0,2516.6,4.93415247]
[1730491463224,4.80205,2517.0,2516.6,4.809848]
[1730491463926,4.80205,2517.0,2516.6,0.12431618]
[1730491463927,3.9732,2516.9,2516.6,0.12431618]
[1730491464225,3.9732,2516.9,2516.5,4.51336786]
[1730491464428,0.829,2517.0,2516.5,0.53961786]
[1730491464726,3.97331,2516.8,2516.4,3.9738]
[1730491465133,3.97331,2516.8,2516.3,4.51362786]
[1730491465430,3.97331,2516.8,2516.4,3.97385]
[1730491466502,3.97331,2516.8,2516.4,4.09817403]
[1730491466821,3.97331,2516.8,2516.4,3.97385]
[1730491467490,3.97331,2516.8,2516.3,5.55384504]
[1730491467912,3.97331,2516.8,2516.4,3.97392]
[1730491468091,4.80212,2517.0,2516.5,3.97376]
[1730491468301,4.80211,2517.0,2516.5,3.97376]
[1730491468532,3.97323,2516.9,2516.5,3.97376]
[1730491469826,3.97323,2516.9,2516.5,7.94745]
[1730491469998,3.97323,2516.9,2516.5,3.97369]
[1730491470402,4.80204,2517.0,2516.5,7.94735]
[1730491470725,4.80204,2517.0,2516.5,3.97366]
[1730491470932,3.97314,2516.9,2516.5,3.97366]
[1730491474740,0.829,2517.0,2516.6,3.97354]
[1730491474922,3.97278,2517.2,2516.8,5.43010134]
[1730491475229,8.77109,2517.3,2516.9,3.97309]
[1730491475432,0.8259,2517.3,2517.0,3.97296]
[1730491475730,4.79842,2517.3,2516.9,7.94616]
[1730491475907,4.79842,2517.3,2516.9,4.91337313]
[1730491476429,4.79842,2517.3,2516.9,0.94030313]
[1730491476812,4.79842,2517.3,2516.8,5.43004134]
[1730491477205,3.97268,2517.2,2516.8,5.43004134]
[1730491478029,3.97305,2517.0,2516.6,0.4153]
[1730491478335,7.94613,2517.0,2516.6,0.4153]
[1730491478499,3.97315,2516.9,2516.6,0.4153]
[1730491479239,3.97332,2516.8,2516.6,0.4153]
[1730491479397,0.7891,2516.9,2516.4,1.45687134]
[1730491479596,3.97341,2516.8,2516.4,1.45687134]
[1730491479827,3.97345,2516.7,2516.3,4.3893]
[1730491480670,3.97337,2516.8,2516.4,3.97384]
[1730491481411,3.97346,2516.7,2516.3,4.38937]
[1730491482309,3.97332,2516.8,2516.4,1.45687134]
[1730491482630,7.94672,2516.8,2516.4,5.43067134]
[1730491483341,3.97332,2516.8,2516.4,5.43067134]
[1730491484403,3.97347,2516.7,2516.4,1.45687134]
[1730491484609,3.97332,2516.8,2516.3,0.4153]
[1730491484834,3.97348,2516.7,2516.3,4.51370728]
[1730491485041,3.97362,2516.6,2516.3,0.4153]
[1730491486203,3.97362,2516.6,2515.6,2.78659702]
[1730491486204,0.7703,2516.5,2516.1,0.4153]
[1730491486408,3.97399,2516.4,2516.0,1.45687134]
[1730491486650,3.97399,2516.4,2516.0,5.43136134]
[1730491486942,0.7703,2516.5,2516.1,3.9744]
[1730491486943,4.74409,2516.5,2516.1,3.9744]
[1730491487742,3.97393,2516.4,2516.0,5.43140134]
[1730491489343,4.74409,2516.5,2516.1,3.97439]
[1730491489518,4.74409,2516.5,2516.0,5.43140134]
[1730491489519,4.74409,2516.5,2516.0,1.45687134]
[1730491489719,4.74409,2516.5,2516.0,5.43139134]
[1730491490358,3.97412,2516.3,2516.0,1.45687134]
[1730491491019,3.97393,2516.4,2516.0,5.43137134]
[1730491491553,3.97393,2516.4,2516.0,5.43142134]
[1730491494022,0.7703,2516.5,2516.0,5.43142134]
[1730491494023,4.7441,2516.5,2516.0,5.43142134]
[1730491494225,3.9738,2516.5,2516.2,1.45687134]
[1730491496268,3.97393,2516.4,2516.2,1.58121354]
[1730491496453,3.97393,2516.4,2516.2,1.45687134]
[1730491497054,3.97393,2516.4,2516.1,0.1243422]
[1730491497431,3.97411,2516.3,2516.1,0.1243422]
[1730491497651,3.97411,2516.3,2516.0,1.45687134]
[1730491497652,3.97411,2516.3,2516.0,1.87655551]
[1730491497958,3.97411,2516.3,2516.0,1.45687134]
[1730491498182,3.97395,2516.4,2516.0,1.87659514]
[1730491498353,3.97392,2516.5,2516.1,4.09868772]
[1730491498528,3.97393,2516.4,2516.1,0.12434772]
[1730491499495,7.94794,2516.4,2516.1,0.12434772]
[1730491499671,7.94796,2516.4,2516.1,0.12434772]
[1730491499870,3.97393,2516.4,2516.1,0.12434772]
[1730491500182,3.9741,2516.3,2516.1,0.12434772]
[1730491500493,3.9741,2516.3,2516.0,2.17197733]
[1730491501524,3.97394,2516.4,2516.1,0.12434772]
[1730491501797,3.97394,2516.4,2516.1,0.12434206]
[1730491502503,0.8291,2516.7,2516.1,0.12434206]
[1730491502504,3.97384,2516.5,2516.1,0.12434206]
[1730491502802,7.94773,2516.5,2516.1,4.09869206]
[1730491502966,3.97384,2516.5,2516.1,4.39404865]
[1730491503887,0.8291,2516.7,2516.1,0.41971994]
[1730491504091,3.974,2516.4,2516.1,0.12434206]
[1730491504799,3.974,2516.4,2516.0,5.43142134]
[1730491505100,3.97425,2516.2,2516.1,0.12434524]
[1730491505400,3.97425,2516.2,2515.9,0.4153]
[1730491505580,3.97425,2516.2,2515.9,0.53964524]
[1730491505899,3.97448,2516.1,2515.9,0.53964524]